fUSD/lending_fUSD_20250809
["ID","MTS","AMOUNT","RATE_DAILY","PERIOD"]
[378159209,1754753439918,-8310.35120249,0.0002099,2]
[378159210,1754753439928,-151.52,0.0002099,2]
[378159212,1754753439938,-151.52,0.0002099,2]
[378159214,1754753439947,-151.52,0.0002099,2]
[378159216,1754753439957,-151.52,0.0002099,2]
[378159218,1754753439966,-151.52,0.0002099,2]
[378159220,1754753439976,-151.52,0.0002099,2]
[378159222,1754753439986,-151.52,0.0002099,2]
[378159224,1754753439995,-151.52,0.0002099,2]
[378159226,1754753440005,-151.52,0.0002099,2]
[378159228,1754753440014,-151.52,0.0002099,2]
[378159230,1754753440024,-151.52,0.0002099,2]
[378159232,1754753440033,-151.52,0.0002099,2]
[378159234,1754753440043,-151.52,0.0002099,2]
[378159236,1754753440052,-151.52,0.0002099,2]
[378159238,1754753440062,-151.52,0.0002099,2]
[378159240,1754753440073,-151.52,0.0002099,2]
[378159242,1754753440082,-151.52,0.0002099,2]
[378159243,1754753440091,-151.52,0.0002099,2]
[378159245,1754753440101,-151.52,0.0002099,2]
[378159247,1754753440113,-151.52,0.0002099,2]
[378159249,1754753440123,-151.52,0.0002099,2]
[378159251,1754753440132,-151.52,0.0002099,2]
[378159252,1754753440142,-307.05174551,0.0002099,2]
[378159254,1754753440152,-307.05174551,0.0002099,2]
[378159256,1754753440162,-4760087.9136892,0.00020991,2]
[378159258,1754753440172,-300.0,0.00020999,2]
[378159260,1754753440182,-300.0,0.00020999,2]
[378159262,1754753440191,-397.87489445,0.00020999,2]
[378159264,1754753440200,-175.184,0.00020999,2]
[378159265,1754753440210,-2669.602,0.00020999,2]
[378159267,1754753440221,-163.09355385,0.00020999,2]
[378159269,1754753440230,-21491.82809889,0.00020999,7]
[378159271,1754753440240,-150.0,0.00020999,2]
[378159273,1754753440250,-155.635489,0.00020999,2]
[378159275,1754753440260,-287715.32914784,0.00021,2]
[378159315,1754753440703,-684.03151752,0.00019686,3]
[378159317,1754753440716,-203.96848248,0.00019686,3]
[378159319,1754753440727,-63.60386494,0.00021,2]
[378159321,1754753440743,-730986.14644782,0.00021,2]
[378159324,1754753440755,-517.0,0.00021,2]
[378159504,1754753443145,-888.0,0.00020186,3]
[378159505,1754753443155,-4958.5,0.00021,2]
[378159506,1754753443166,-4369.03009272,0.00021,2]
[378159509,1754753443272,-158767.12053332,0.00021,2]
[378159513,1754753443305,-1118.12011524,0.00021,2]
[378159514,1754753443339,-2488656.62724562,0.00021,2]
[378159516,1754753443457,-888.0,0.00020686,3]
[378159517,1754753443466,-2605.1879871,0.00021,2]
[378159520,1754753443485,-14070.93100523,0.00021,2]
[378159523,1754753443499,-627.19741061,0.00021,2]
[378159544,1754753443693,-1147.13999999,0.00021,2]
[378159546,1754753443705,-2967.66735745,0.00021,2]
[378159549,1754753443717,-10373.74743374,0.00021,2]
[378159701,1754753446477,-1105.4400085,0.00021,2]
[378159702,1754753446581,-4191.26,0.00021,2]
[378159703,1754753446593,-59318.71800002,0.00021,2]
[378159704,1754753446604,-101255.09780453,0.00021,2]
[378159705,1754753446655,-71725.05098787,0.00021,2]
[378159717,1754753449816,1220.0,0.000196,5]
[378159718,1754753454457,423.77790866,0.00018999,2]
[378159719,1754753454528,156.22209134,0.00018999,2]
[378159819,1754753704848,172.0,0.00021414,120]
[378159821,1754753706152,172.0,0.00023555,120]
[378159961,1754754005824,173.0,0.00021414,120]
[378159963,1754754007171,173.0,0.00023555,120]
[378160068,1754754242406,196.14,0.00015639,2]
[378160088,1754754302883,174.0,0.00021414,120]
[378160098,1754754317393,154.07,0.00013699,2]
[378160132,1754754384278,348.44,0.00015068,2]
[378160133,1754754384508,348.44,0.0001673,2]
[378160220,1754754631615,-348.44,0.00018392,2]
[378160221,1754754631624,-403.92188187,0.000187,2]
[378160222,1754754631634,-176.27203627,0.00018787,2]
[378160223,1754754631643,-1358.0,0.000188,5]
[378160225,1754754631652,-300.0,0.00018887,2]
[378160226,1754754631661,-1200.0,0.00018887,2]
[378160227,1754754631671,-150.0,0.00018888,2]
[378160228,1754754631681,-150.0,0.00018888,2]
[378160229,1754754631690,-150.0,0.00018888,2]
[378160230,1754754631700,-150.0,0.00018888,2]
[378160231,1754754631709,-150.0,0.00018888,2]
[378160232,1754754631719,-150.0,0.00018888,2]
[378160233,1754754631729,-217.67230249,0.00018888,2]
[378160234,1754754631738,-150.0,0.00018888,2]
[378160235,1754754631748,-150.0,0.00018888,2]
[378160236,1754754631758,-42.7831755,0.00018888,2]
[378160237,1754754631769,-107.2168245,0.00018888,2]
[378160238,1754754631778,-150.0,0.00018888,2]
[378160239,1754754631788,-1220.83,0.00019153,2]
[378160240,1754754631798,-151.0,0.00019178,2]
[378160241,1754754631807,-170.25,0.00019178,2]
[378160242,1754754631817,-150.0,0.00019183,2]
[378160243,1754754631827,-263.681903,0.00019221,2]
[378160244,1754754631836,-222.63,0.00019223,2]
[378160245,1754754631846,-498.29,0.00019232,2]
[378160246,1754754631855,-944.69,0.00019241,2]
[378160247,1754754631864,-194.56,0.00019318,2]
[378160248,1754754631874,-1302.87,0.0001939,2]
[378160249,1754754631883,-222.63,0.00019415,2]
[378160250,1754754631892,-2116.50797333,0.0001943,2]
[378160251,1754754631937,-476.91202667,0.0001943,2]
[378160252,1754754631946,-514.0,0.00019501,2]
[378160253,1754754631957,-506.0,0.00019501,2]
[378160254,1754754631968,-295.0,0.00019549,2]
[378160255,1754754631977,-2581.24,0.0001955,2]
[378160256,1754754631987,-250.0,0.0001955,2]
[378160257,1754754631997,-1219.38,0.00019582,2]
[378160258,1754754632006,-150.0,0.00019587,4]
[378160259,1754754632015,-1453.48,0.00019589,2]
[378160261,1754754632025,-150.0,0.00019593,2]
[378160263,1754754632034,-254.66,0.00019606,2]
[378160265,1754754632044,-600.0,0.00019625,2]
[378160267,1754754632055,-600.0,0.00019625,2]
[378160268,1754754632064,-600.0,0.00019625,2]
[378160269,1754754632074,-535.89402898,0.00019625,2]
[378160270,1754754632086,-64.10597102,0.00019625,2]
[378160271,1754754632101,-186.44,0.00019695,2]
[378160272,1754754632110,-251.1,0.00019716,2]
[378160273,1754754632120,-2047.3,0.00019726,2]
[378160274,1754754632129,-156.587,0.00019726,2]
[378160275,1754754632143,-412.09964442,0.00019869,2]
[378160276,1754754632152,-3972.00964775,0.00019872,2]
[378160277,1754754632163,-494.91301595,0.00019872,2]
[378160278,1754754632190,-2219.55657974,0.00019872,2]
[378160281,1754754632209,-97.50075656,0.00019872,2]
[378160283,1754754632220,-200.0,0.00019874,2]
[378160285,1754754632232,-232.23918382,0.00019874,2]
[378160291,1754754632265,-267.76081618,0.00019874,2]
[378160292,1754754632275,-292.93747121,0.00019874,2]
[378160295,1754754632286,-207.06252879,0.00019874,2]
[378160297,1754754632296,-512.30482784,0.00019874,2]
[378160299,1754754632307,-666.14428323,0.00019874,2]
[378160301,1754754632318,-259.64584777,0.00019874,2]
[378160303,1754754632328,-500.0,0.00019874,2]
[378160305,1754754632337,-500.0,0.00019874,2]
[378160307,1754754632347,-174.39601421,0.00019874,2]
[378160309,1754754632356,-151.0,0.00019874,2]
[378160311,1754754632366,-151.0,0.00019874,2]
[378160313,1754754632375,-708.0,0.00019886,2]
[378160315,1754754632385,-167.14,0.00019888,2]
[378160317,1754754632394,-7074.95269211,0.00019888,2]
[378160321,1754754632425,-1052.8,0.00019888,2]
[378160324,1754754632437,-586.51541478,0.00019888,2]
[378160326,1754754632448,-624.54945245,0.00019888,2]
[378160328,1754754632459,-14491.14244066,0.00019888,2]
[378160330,1754754632468,-170.0,0.00019902,7]
[378160332,1754754632478,-1000.0,0.00019913,2]
[378160334,1754754632488,-500.0,0.00019929,2]
[378160336,1754754632497,-500.0,0.00019984,2]
[378160338,1754754632506,-237.32832363,0.0002,2]
[378160340,1754754632518,-694.23131077,0.0002,2]
[378160342,1754754632528,-500.0,0.00020039,2]
[378160344,1754754632537,-348.44,0.00020053,2]
[378160346,1754754632547,-416.6760965,0.00020094,2]
[378160405,1754754637548,-888.0,0.00019683,3]
[378160406,1754754637559,-112.86068782,0.00019694,2]
[378160420,1754754637747,-387.13931218,0.00019694,2]
[378160421,1754754637756,-500.0,0.00019694,2]
[378160422,1754754637767,-500.0,0.00019694,2]
[378160423,1754754637776,-500.0,0.00019694,2]
[378160424,1754754637786,-561.91658859,0.00019694,2]
[378160425,1754754637795,-500.0,0.00019694,2]
[378160426,1754754637805,-500.0,0.00019694,2]
[378160427,1754754637814,-500.0,0.00019694,2]
[378160428,1754754637823,-500.0,0.00019694,2]
[378160429,1754754637832,-500.0,0.00019694,2]
[378160430,1754754637841,-500.0,0.00019694,2]
[378160431,1754754637851,-500.0,0.00019694,2]
[378160432,1754754637860,-500.0,0.00019694,2]
[378160433,1754754637869,-500.0,0.00019694,2]
[378160434,1754754637879,-500.0,0.00019694,2]
[378160435,1754754637888,-412.89682251,0.00019694,2]
[378160436,1754754637897,-500.0,0.00019694,2]
[378160437,1754754637906,-500.0,0.00019694,2]
[378160438,1754754637915,-500.0,0.00019694,2]
[378160439,1754754637925,-500.0,0.00019694,2]
[378160440,1754754637935,-500.0,0.00019694,2]
[378160441,1754754637944,-500.0,0.00019694,2]
[378160442,1754754637954,-344.30892497,0.00019694,2]
[378160443,1754754637963,-500.0,0.00019694,2]
[378160444,1754754637973,-500.0,0.00019694,2]
[378160445,1754754637982,-421.67078865,0.00019694,2]
[378160446,1754754638002,-78.32921135,0.00019694,2]
[378160447,1754754638012,-500.0,0.00019694,2]
[378160448,1754754638022,-500.0,0.00019694,2]
[378160450,1754754638032,-500.0,0.00019694,2]
[378160452,1754754638041,-500.0,0.00019694,2]
[378160454,1754754638051,-500.0,0.00019694,2]
[378160456,1754754638061,-500.0,0.00019694,2]
[378160458,1754754638070,-500.0,0.00019694,2]
[378160460,1754754638080,-500.0,0.00019694,2]
[378160462,1754754638090,-500.0,0.00019694,2]
[378160464,1754754638099,-500.0,0.00019694,2]
[378160466,1754754638109,-500.0,0.00019694,2]
[378160468,1754754638118,-500.0,0.00019694,2]
[378160470,1754754638128,-500.0,0.00019694,2]
[378160472,1754754638141,-500.0,0.00019694,2]
[378160474,1754754638151,-500.0,0.00019694,2]
[378160476,1754754638160,-500.0,0.00019694,2]
[378160478,1754754638169,-500.0,0.00019694,2]
[378160480,1754754638179,-500.0,0.00019694,2]
[378160482,1754754638188,-500.0,0.00019694,2]
[378160484,1754754638198,-500.0,0.00019694,2]
[378160486,1754754638208,-500.0,0.00019694,2]
[378160488,1754754638218,-18.5665502,0.00019694,2]
[378160620,1754754639564,-481.4334498,0.00019694,2]
[378160623,1754754639574,-500.0,0.00019694,2]
[378160626,1754754639584,-500.0,0.00019694,2]
[378160629,1754754639593,-500.0,0.00019694,2]
[378160631,1754754639602,-230.17861926,0.00019694,2]
[378160634,1754754639611,-500.0,0.00019694,2]
[378160635,1754754639620,-176.27203626,0.00019774,2]
[378160638,1754754639630,-10000.0,0.0002,2]
[378160639,1754754639639,-83.3239035,0.00020094,2]
[378160641,1754754639649,-174.37,0.00020144,2]
[378160643,1754754639659,-500.0,0.00020149,2]
[378160645,1754754639668,-888.0,0.00020183,3]
[378160647,1754754639678,-500.0,0.00020204,2]
[378160649,1754754639688,-557.65,0.00020227,2]
[378160651,1754754639697,-250.0,0.00020231,2]
[378160653,1754754639707,-300.0,0.00020231,2]
[378160655,1754754639716,-500.0,0.00020259,2]
[378160658,1754754639726,-150.0,0.00020287,4]
[378160659,1754754639735,-820.95722968,0.00020309,2]
[378160691,1754754640023,-254.66,0.00020341,2]
[378160693,1754754640034,-1280.94,0.00020359,2]
[378160695,1754754640043,-10000.0,0.000205,2]
[378160697,1754754640053,-820.95722968,0.00020674,2]
[378160699,1754754640062,-641.0,0.00020689,2]
[378160701,1754754640072,-5445.09599593,0.00020761,2]
[378160703,1754754640082,-721.41753346,0.00020774,2]
[378160705,1754754640091,-3628.09607477,0.0002078,2]
[378160707,1754754640100,-5445.09599593,0.00020784,2]
[378160709,1754754640109,-721.41753346,0.00020784,2]
[378160711,1754754640118,-184.27250217,0.00020789,2]
[378160713,1754754640127,-501.61569736,0.00020789,2]
[378160715,1754754640139,-214.63536495,0.00020789,2]
[378160717,1754754640150,-215.61694189,0.00020789,2]
[378160719,1754754640159,-71236.41908253,0.0002079,2]
[378160721,1754754640167,-721.41753346,0.00020795,2]
[378160723,1754754640177,-3672.0,0.000208,2]
[378160724,1754754640187,-721.41753346,0.00020805,2]
[378160727,1754754640197,-5445.09599593,0.00020807,2]
[378160728,1754754640206,-721.41753346,0.00020816,2]
[378160730,1754754640217,-721.41753346,0.00020826,2]
[378160732,1754754640227,-5445.09599593,0.0002083,2]
[378160734,1754754640236,-721.41753346,0.00020837,2]
[378160736,1754754640245,-721.41753346,0.00020847,2]
[378160738,1754754640254,-5445.09599593,0.00020854,2]
[378160740,1754754640264,-721.41753346,0.00020858,2]
[378160742,1754754640274,-721.41753346,0.00020868,2]
[378160745,1754754640283,-5445.09599593,0.00020877,2]
[378160746,1754754640293,-721.41753346,0.00020879,2]
[378160749,1754754640303,-4000.0,0.00020888,2]
[378160751,1754754640313,-721.41753346,0.00020889,2]
[378160753,1754754640323,-616.24829841,0.00020899,2]
[378160754,1754754640333,-969.4,0.00020899,2]
[378160756,1754754640342,-473.65292565,0.000209,2]
[378160758,1754754640351,-2500.0,0.000209,3]
[378160760,1754754640361,-5445.09599593,0.000209,2]
[378160762,1754754640370,-1016.11298336,0.000209,2]
[378160764,1754754640379,-721.41753346,0.000209,2]
[378160766,1754754640389,-43509.24404904,0.000209,2]
[378160768,1754754640399,-1058.79232605,0.000209,2]
[378160771,1754754640410,-1187.76966943,0.000209,2]
[378160772,1754754640420,-156.18272981,0.000209,2]
[378160774,1754754640431,-947.88,0.00020961,2]
[378160777,1754754640441,-2108.72706652,0.00020965,2]
[378160778,1754754640451,-500.0,0.00020973,2]
[378160781,1754754640461,-170.28872207,0.00020973,2]
[378160783,1754754640471,-500.0,0.00020973,2]
[378160785,1754754640480,-500.0,0.00020973,2]
[378160787,1754754640490,-500.0,0.00020973,2]
[378160789,1754754640503,-500.0,0.00020973,2]
[378160791,1754754640512,-500.0,0.00020973,2]
[378160793,1754754640522,-500.0,0.00020973,2]
[378160795,1754754640531,-500.0,0.00020973,2]
[378160796,1754754640543,-500.0,0.00020973,2]
[378160798,1754754640553,-500.0,0.00020973,2]
[378160800,1754754640563,-500.0,0.00020973,2]
[378160803,1754754640573,-500.0,0.00020973,2]
[378160805,1754754640582,-500.0,0.00020973,2]
[378160806,1754754640591,-654.09243132,0.00020979,2]
[378160808,1754754640600,-165.55290762,0.00020986,4]
[378160811,1754754640610,-150.0,0.00020986,4]
[378160813,1754754640620,-1924.93609541,0.0002099,2]
[378160815,1754754640629,-235.8316692,0.0002099,2]
[378160817,1754754640638,-1398.18004556,0.0002099,2]
[378160819,1754754640647,-436.11040227,0.0002099,2]
[378160821,1754754640656,-193.49867068,0.0002099,2]
[378160823,1754754640665,-397.87489445,0.00020999,2]
[378160824,1754754640674,-300.0,0.00020999,2]
[378160826,1754754640683,-300.0,0.00020999,2]
[378160828,1754754640692,-300.0,0.00020999,2]
[378160830,1754754640702,-163.09355385,0.00020999,2]
[378160832,1754754640712,-21491.82809889,0.00020999,7]
[378160834,1754754640722,-1000.0,0.00020999,2]
[378160837,1754754640732,-457.70825493,0.00020999,7]
[378160839,1754754640741,-211.66152043,0.00020999,7]
[378160840,1754754640751,-150.0,0.00020999,2]
[378160842,1754754640760,-155.635489,0.00020999,2]
[378160845,1754754640770,-2000.0,0.00020999,2]
[378160846,1754754640779,-763.18514002,0.00021,2]
[378160848,1754754640792,-96553.02113467,0.00021,2]
[378160851,1754754640805,-378613.13933084,0.00021,2]
[378160857,1754754640856,-3815.79391205,0.00021,2]
[378160859,1754754640867,-992.59270042,0.00021,2]
[378161021,1754754642505,-888.0,0.00020194,3]
[378161023,1754754642515,-175.85,0.00021,2]
[378161039,1754754642771,-8.0,0.00021,2]
[378161047,1754754642837,-888.0,0.00020694,3]
[378161049,1754754642847,-1218.68,0.00021,2]
[378161378,1754754646141,-281374.28370271,0.00021,2]
[378161380,1754754646152,-572.90272615,0.00021,2]
[378161383,1754754646170,-1272.71521001,0.00021,2]
[378161389,1754754646225,-1740.14853689,0.00021,2]
[378161453,1754754646765,-97144.94353709,0.00021,2]
[378161460,1754754646824,-520.0,0.00019501,2]
[378161462,1754754646833,-2703.15810856,0.00021,2]
[378161464,1754754646845,-2551.22231029,0.00021,2]
[378161903,1754755096407,514.0,0.00017501,2]
[378161932,1754755371964,156.92,0.00013699,2]
[378161945,1754755571770,349.86,0.00015068,2]
[378161946,1754755571992,349.86,0.00016723,2]
[378161971,1754755816361,514.0,0.00017626,2]
[378161978,1754755831903,-349.86,0.00018377,2]
[378161979,1754755831913,-548.80180824,0.00018526,2]
[378161980,1754755831922,-150.0,0.00018888,2]
[378161981,1754755831933,-150.0,0.00018888,2]
[378161982,1754755831942,-354.0,0.00018938,2]
[378161983,1754755831952,-167.14,0.00018965,2]
[378161984,1754755831961,-109.97378469,0.000191,2]
[378161985,1754755831973,-56.02621531,0.000191,2]
[378161986,1754755831983,-1698.51093436,0.00019163,2]
[378161987,1754755831994,-35.13906564,0.00019163,2]
[378161988,1754755832004,-1280.94,0.00019179,2]
[378161989,1754755832013,-170.0,0.00019192,7]
[378161990,1754755832023,-500.0,0.00019234,2]
[378161992,1754755832033,-192.08,0.00019241,2]
[378161993,1754755832042,-300.0,0.00019421,2]
[378161994,1754755832052,-1200.0,0.00019421,2]
[378161995,1754755832061,-1200.0,0.00019422,2]
[378161996,1754755832071,-300.0,0.00019422,2]
[378161997,1754755832081,-300.0,0.00019422,2]
[378161998,1754755832091,-8958.25,0.00019424,2]
[378161999,1754755832100,-166.66666667,0.00019426,2]
[378162000,1754755832110,-250.0,0.00019464,2]
[378162001,1754755832120,-152.79,0.00019482,2]
[378162002,1754755832129,-500.0,0.00019593,2]
[378162003,1754755832138,-600.0,0.00019631,2]
[378162004,1754755832148,-600.0,0.00019631,2]
[378162005,1754755832157,-572.4,0.00019631,2]
[378162006,1754755832167,-1000.0,0.00019682,2]
[378162007,1754755832177,-549.02,0.00019734,2]
[378162008,1754755832187,-150.0,0.00019735,2]
[378162009,1754755832196,-231.1,0.00019755,2]
[378162010,1754755832205,-180.07,0.00019763,2]
[378162011,1754755832215,-16607.59,0.00019819,2]
[378162012,1754755832224,-150.0,0.00019833,2]
[378162013,1754755832235,-30003.77535847,0.00019834,2]
[378162014,1754755832246,-6535.56076939,0.00019834,2]
[378162015,1754755832256,-785.13704154,0.00019844,2]
[378162016,1754755832268,-16060.77423839,0.00019844,2]
[378162017,1754755832280,-4418.12872007,0.00019844,2]
[378162018,1754755832290,-1000.0,0.00019853,2]
[378162019,1754755832299,-514.0,0.00019856,5]
[378162020,1754755832309,-2028.05,0.00019908,2]
[378162022,1754755832319,-151.0,0.00019924,2]
[378162023,1754755832329,-151.0,0.00019924,2]
[378162024,1754755832339,-151.0,0.00019924,2]
[378162025,1754755832349,-151.0,0.00019924,2]
[378162026,1754755832359,-151.0,0.00019924,2]
[378162027,1754755832368,-151.0,0.00019924,2]
[378162028,1754755832378,-151.0,0.00019924,2]
[378162029,1754755832387,-151.0,0.00019924,2]
[378162030,1754755832397,-151.0,0.00019924,2]
[378162031,1754755832406,-500.0,0.00019924,2]
[378162032,1754755832417,-151.0,0.00019924,2]
[378162033,1754755832426,-151.0,0.00019924,2]
[378162034,1754755832436,-500.0,0.00019924,2]
[378162035,1754755832446,-500.0,0.00019924,2]
[378162037,1754755832458,-500.0,0.00019924,2]
[378162038,1754755832468,-500.0,0.00019924,2]
[378162039,1754755832478,-500.0,0.00019924,2]
[378162040,1754755832488,-500.0,0.00019924,2]
[378162041,1754755832497,-151.0,0.00019924,2]
[378162042,1754755832509,-500.0,0.00019924,2]
[378162043,1754755832519,-500.0,0.00019924,2]
[378162044,1754755832528,-151.0,0.00019924,2]
[378162046,1754755832544,-500.0,0.00019924,2]
[378162048,1754755832558,-500.0,0.00019924,2]
[378162051,1754755832574,-151.0,0.00019924,2]
[378162053,1754755832588,-500.0,0.00019924,2]
[378162055,1754755832599,-500.0,0.00019924,2]
[378162058,1754755832613,-151.0,0.00019924,2]
[378162060,1754755832626,-426.01436619,0.00019924,2]
[378162062,1754755832639,-500.0,0.00019924,2]
[378162065,1754755832653,-151.0,0.00019924,2]
[378162067,1754755832668,-500.0,0.00019924,2]
[378162070,1754755832681,-151.0,0.00019924,2]
[378162072,1754755832693,-366.10586358,0.00019924,2]
[378162074,1754755832704,-151.0,0.00019924,2]
[378162077,1754755832718,-151.0,0.00019924,2]
[378162079,1754755832731,-1438.09495884,0.00019924,2]
[378162081,1754755832745,-151.0,0.00019924,2]
[378162084,1754755832758,-500.0,0.00019924,2]
[378162086,1754755832772,-151.0,0.00019924,2]
[378162089,1754755832785,-500.0,0.00019924,2]
[378162091,1754755832800,-500.0,0.00019924,2]
[378162094,1754755832813,-324.359375,0.00019924,2]
[378162096,1754755832828,-151.0,0.00019924,2]
[378162098,1754755832841,-151.0,0.00019924,2]
[378162101,1754755832854,-151.0,0.00019924,2]
[378162103,1754755832867,-151.0,0.00019924,2]
[378162106,1754755832885,-151.0,0.00019924,2]
[378162108,1754755832900,-151.0,0.00019924,2]
[378162111,1754755832913,-151.0,0.00019924,2]
[378162113,1754755832925,-151.0,0.00019924,2]
[378162115,1754755832936,-151.0,0.00019924,2]
[378162117,1754755832948,-151.0,0.00019924,2]
[378162120,1754755832963,-151.0,0.00019924,2]
[378162122,1754755832978,-200.0,0.00019924,2]
[378162125,1754755832989,-1268.54709554,0.00019936,2]
[378162130,1754755833029,-2857.01158428,0.00019936,2]
[378162133,1754755833046,-4192.6720739,0.00019936,2]
[378162135,1754755833062,-2052.98576899,0.00019936,2]
[378162138,1754755833077,-549.77001265,0.00019936,2]
[378162140,1754755833090,-19520.44346464,0.00019936,2]
[378162143,1754755833113,-500.0,0.00019979,2]
[378162146,1754755833125,-7387.97200842,0.00020004,2]
[378162148,1754755833139,-349.86,0.00020031,2]
[378162150,1754755833152,-500.0,0.00020034,2]
[378162153,1754755833165,-167.65,0.00020042,2]
[378162155,1754755833179,-500.0,0.00020089,2]
[378162158,1754755833192,-167.98,0.00020104,2]
[378162160,1754755833204,-7387.9720084,0.00020104,2]
[378162162,1754755833218,-500.0,0.00020144,2]
[378162164,1754755833231,-500.0,0.00020199,2]
[378162165,1754755833244,-5528.91964854,0.00020203,2]
[378162166,1754755833259,-333.97727723,0.00020203,2]
[378162173,1754755838262,-888.0,0.00019679,3]
[378162174,1754755838272,-1525.07508263,0.00020203,2]
[378162175,1754755838281,-152.79,0.00020213,2]
[378162176,1754755838291,-300.0,0.00020215,2]
[378162177,1754755838301,-300.0,0.00020215,2]
[378162178,1754755838310,-250.0,0.00020215,2]
[378162179,1754755838319,-500.0,0.00020254,2]
[378162180,1754755838329,-162.0,0.0002028,2]
[378162181,1754755838339,-3517.8344022,0.00020303,2]
[378162293,1754755839784,-280.48445511,0.00020179,3]
[378162295,1754755839796,-607.51554489,0.00020179,3]
[378162297,1754755839806,-3870.1376062,0.00020303,2]
[378162299,1754755839815,-298.51,0.00020308,2]
[378162301,1754755839825,-500.0,0.00020309,2]
[378162303,1754755839834,-796.99,0.00020341,2]
[378162305,1754755839844,-500.0,0.00020364,2]
[378162307,1754755839853,-820.95722968,0.000204,2]
[378162309,1754755839863,-7387.9720084,0.00020402,2]
[378162311,1754755839872,-500.0,0.00020419,2]
[378162313,1754755839881,-888.0,0.00020424,3]
[378162315,1754755839891,-500.0,0.00020474,2]
[378162317,1754755839901,-8403.78276594,0.000205,2]
[378162319,1754755839910,-600.96135277,0.00020501,2]
[378162321,1754755839920,-500.0,0.00020501,2]
[378162323,1754755839930,-500.0,0.00020501,2]
[378162325,1754755839939,-156.98853584,0.00020501,2]
[378162327,1754755839949,-500.0,0.00020501,2]
[378162329,1754755839958,-500.0,0.00020501,2]
[378162331,1754755839967,-500.0,0.00020501,2]
[378162333,1754755839976,-500.0,0.00020501,2]
[378162335,1754755839986,-500.0,0.00020501,2]
[378162337,1754755839995,-500.0,0.00020501,2]
[378162339,1754755840004,-500.0,0.00020501,2]
[378162341,1754755840013,-500.0,0.00020501,2]
[378162343,1754755840022,-500.0,0.00020501,2]
[378162345,1754755840031,-500.0,0.00020501,2]
[378162347,1754755840041,-500.0,0.00020501,2]
[378162349,1754755840050,-500.0,0.00020501,2]
[378162351,1754755840059,-399.66068094,0.00020501,2]
[378162353,1754755840068,-500.0,0.00020501,2]
[378162355,1754755840078,-500.0,0.00020501,2]
[378162357,1754755840087,-500.0,0.00020501,2]
[378162359,1754755840096,-500.0,0.00020501,2]
[378162361,1754755840105,-500.0,0.00020501,2]
[378162363,1754755840115,-500.0,0.00020501,2]
[378162365,1754755840125,-7387.9720084,0.00020502,2]
[378162367,1754755840134,-150.0,0.00020538,2]
[378162369,1754755840143,-721.41753346,0.0002056,2]
[378162371,1754755840152,-721.41753346,0.00020584,2]
[378162373,1754755840161,-820.95722968,0.00020598,2]
[378162375,1754755840171,-7387.9720084,0.00020601,2]
[378162377,1754755840181,-721.41753346,0.00020608,2]
[378162379,1754755840190,-721.41753346,0.00020633,2]
[378162381,1754755840200,-721.41753346,0.00020657,2]
[378162383,1754755840209,-721.41753346,0.00020681,2]
[378162386,1754755840219,-458.75,0.000207,2]
[378162388,1754755840228,-7387.9720084,0.00020701,2]
[378162390,1754755840237,-721.41753346,0.00020705,2]
[378162392,1754755840247,-549.02,0.00020721,2]